bitfinex/quotes_ETHUSD_20250507
["timestamp","ask_amount","ask_price","bid_price","bid_amount"]
[1746578372788,4.54535615,1839.0,1838.8,0.10673267]
[1746578372986,0.45453562,1838.9,1838.7,5.54620615]
[1746578373188,0.02153879,1839.0,1838.8,5.43832934]
[1746578373491,0.02153879,1839.0,1838.8,5.54575016]
[1746578373696,0.02153879,1839.0,1838.8,0.10758244]
[1746578373929,0.30513864,1838.9,1838.8,0.10758244]
[1746578374105,0.70978124,1838.9,1838.8,0.10758244]
[1746578374306,0.30513864,1838.9,1838.8,0.10758244]
[1746578376419,0.30513864,1838.9,1838.7,5.43848493]
[1746578376626,0.30513864,1838.9,1838.8,0.10800737]
[1746578377696,3.88158989,1838.9,1838.8,0.10800737]
[1746578378028,0.8135,1838.8,1838.5,5.43912789]
[1746578378334,0.02153879,1838.7,1838.5,5.43898745]
[1746578379130,0.30513864,1838.6,1838.5,5.43898745]
[1746578379804,0.30513864,1838.6,1838.4,12.00232017]
[1746578380010,0.30513864,1838.5,1838.4,12.00232017]
[1746578381208,0.30513864,1838.5,1838.4,12.79022017]
[1746578381937,0.30513864,1839.2,1839.0,5.43766772]
[1746578382236,0.30513864,1839.2,1838.8,11.98119133]
[1746578382237,0.32667743,1839.1,1838.8,11.98119133]
[1746578382532,0.32667743,1839.1,1838.7,5.43842077]
[1746578382533,3.0,1839.0,1838.7,5.43842077]
[1746578382740,0.02153879,1838.9,1838.7,5.43842077]
[1746578383233,0.82723879,1838.9,1838.7,5.43842077]
[1746578383438,0.30565679,1838.8,1838.7,5.43842077]
[1746578385551,0.30565679,1838.8,1838.0,13.9268]
[1746578385552,0.8243,1838.6,1838.0,13.9268]
[1746578385755,0.02153879,1838.5,1838.3,5.43975814]
[1746578385922,0.30565679,1838.8,1838.7,5.43862511]
[1746578386730,0.30565679,1838.8,1838.6,5.43872686]
[1746578386931,0.30565679,1838.8,1838.7,5.43862511]
[1746578387126,0.30565679,1838.8,1838.6,5.43872686]
[1746578387656,0.30565679,1838.7,1838.6,5.43872686]
[1746578392059,0.30565679,1838.7,1838.5,12.00116952]
[1746578392250,0.30565679,1838.7,1838.5,6.562]
[1746578392435,0.30565679,1838.6,1838.5,6.562]
[1746578393669,0.30565679,1838.6,1838.3,5.43956564]
[1746578394271,0.30565679,1838.6,1838.4,5.43940378]
[1746578394433,0.30565679,1838.5,1838.4,5.43940378]
[1746578394772,0.71101362,1838.5,1838.4,5.43940378]
[1746578396940,0.71101362,1838.5,1838.2,12.76011381]
[1746578397147,0.71101362,1838.5,1838.3,5.43980851]
[1746578397148,0.30565679,1838.4,1838.3,5.43980851]
[1746578397457,0.30565679,1838.4,1838.3,5.49420272]
[1746578398999,0.40158219,1838.6,1838.5,5.43921675]
[1746578399202,0.77193879,1838.8,1838.5,5.43921675]
[1746578399364,3.0,1838.7,1838.4,5.43939287]
[1746578399562,3.9210301,1838.7,1838.4,5.43931003]
[1746578399814,0.30560776,1838.6,1838.5,5.43917842]
[1746578400996,0.30560776,1838.6,1838.4,5.43930395]
[1746578401159,0.30560776,1838.5,1838.3,5.43965912]
[1746578401362,0.30560776,1838.5,1838.4,5.43951261]
[1746578401802,0.30560776,1838.5,1838.3,5.43961546]
[1746578402103,0.30560776,1838.5,1838.3,5.43960735]
[1746578402267,0.30560776,1838.4,1838.3,5.43960735]
[1746578402976,0.30560776,1838.4,1838.2,5.43998169]
[1746578403287,0.71222854,1838.4,1838.2,5.43998169]
[1746578403628,0.30560776,1838.4,1838.3,5.43980851]
[1746578403837,3.02153879,1838.6,1838.3,5.43980851]
[1746578404130,0.30572143,1838.5,1838.3,5.43980851]
[1746578404435,0.30572143,1838.4,1838.3,5.43965159]
[1746578406699,0.30572143,1838.4,1838.3,6.22395159]
[1746578407740,0.30572143,1838.4,1838.3,6.2783412]
[1746578408041,0.40231746,1838.6,1838.3,6.2783412]
[1746578408042,0.30572143,1838.5,1838.4,6.20611261]
[1746578408567,0.30572143,1838.5,1838.4,6.26049595]
[1746578408701,0.77413879,1839.0,1838.7,5.4383632]
[1746578408902,3.02153879,1839.1,1838.8,5.43829619]
[1746578409132,0.30215388,1839.0,1838.8,5.43829619]
[1746578409343,0.30215388,1839.0,1838.9,5.4380336]
[1746578409502,0.3054941,1839.0,1838.9,5.4380336]
[1746578410396,0.30548583,1839.0,1838.8,0.7965]
[1746578410601,0.30548583,1839.0,1838.9,5.49241104]
[1746578410802,0.30548583,1839.0,1838.9,5.4380336]
[1746578411025,0.30548583,1839.0,1838.8,6.23463029]
[1746578411236,0.30548583,1839.0,1838.9,12.32650926]
[1746578411549,0.30548583,1839.0,1838.9,12.2721336]
[1746578411915,3.8205,1839.7,1839.4,5.4363564]
[1746578412245,0.30507935,1839.6,1839.4,5.43633216]
[1746578412557,0.30507935,1839.6,1839.4,5.43632081]
[1746578412723,0.30507935,1839.6,1839.5,5.43625985]
[1746578413056,9.21495181,1839.9,1839.5,5.43603269]
[1746578413630,7.21961187,1839.7,1839.3,11.94080222]
[1746578413830,7.21961187,1839.7,1839.3,6.504]
[1746578413831,6.91645698,1839.6,1839.3,6.504]
[1746578414166,1.48026119,1839.6,1839.3,17.37734922]
[1746578414335,0.7583,1839.6,1839.3,11.94062301]
[1746578414654,0.7583,1839.6,1839.3,11.94061635]
[1746578414865,0.30458667,1839.5,1839.3,6.504]
[1746578415056,0.30458667,1839.5,1839.3,11.94081619]
[1746578415253,0.30458667,1839.5,1839.3,11.94062374]
[1746578415419,0.30458667,1839.5,1839.4,5.43655539]
[1746578417027,0.30458667,1839.5,1839.4,6.24715539]
[1746578417765,3.85113879,1839.8,1839.5,5.43613475]
[1746578417967,0.85113879,1839.8,1839.5,5.43613475]
[1746578418267,8.43567199,1839.7,1839.3,11.94065896]
[1746578418429,8.43567199,1839.7,1839.3,17.37734522]
[1746578418633,8.45721078,1839.7,1839.4,5.43654641]
[1746578418840,0.30410905,1839.6,1839.4,5.43636044]
[1746578419166,0.30410905,1839.6,1839.3,11.94071067]
[1746578419375,0.30410905,1839.6,1839.4,5.43653769]
[1746578419537,0.30410905,1839.6,1839.4,5.43634987]
[1746578419870,3.02153879,1839.7,1839.4,5.43634987]
[1746578420472,3.02153879,1839.7,1839.5,5.43610776]
[1746578421573,3.0,1839.7,1839.5,5.43610776]
[1746578422676,0.8296,1839.8,1839.6,5.43571956]
[1746578423178,0.30372539,1839.7,1839.6,5.43571956]
[1746578423874,0.30372539,1839.7,1839.5,5.43611369]
[1746578424077,0.8296,1839.8,1839.5,5.43611369]
[1746578424654,0.85113879,1839.8,1839.6,5.43593527]
[1746578424973,13.06960179,1839.9,1839.7,5.43543813]
[1746578424974,4.63452199,1839.9,1839.7,5.43543813]
[1746578425148,4.65606078,1839.9,1839.7,5.43543813]
[1746578425470,0.30361447,1839.8,1839.7,5.43543813]
[1746578425664,0.30361447,1839.8,1839.6,5.43576973]
[1746578426055,4.65606078,1839.9,1839.6,5.43576973]
[1746578426260,4.65606078,1839.9,1839.7,5.43561303]
[1746578426652,0.43644891,1839.9,1839.6,5.43590009]
[1746578427044,0.43644891,1839.9,1839.6,5.43574844]
[1746578427676,0.43644891,1839.9,1839.6,5.43574861]
[1746578428183,3.0,1839.8,1839.5,6.25109534]
[1746578428390,3.0,1839.8,1839.5,11.68715066]
[1746578428560,3.0,1839.8,1839.5,6.25103815]
[1746578428786,3.0,1839.8,1839.6,5.43594867]
[1746578430508,0.43644891,1839.9,1839.5,0.815]
[1746578430712,0.41491012,1839.9,1839.6,5.43572974]
[1746578430886,6.22883034,1840.0,1839.6,5.43595063]
[1746578431073,3.0,1839.8,1839.5,6.25109151]
[1746578431473,3.0,1839.8,1839.5,11.68714718]
[1746578431676,3.0,1839.8,1839.6,5.8142495]
[1746578432384,0.02153879,1839.9,1839.7,5.43566885]
[1746578432585,10.17858733,1840.0,1839.8,0.37248759]
[1746578432825,10.17858733,1840.0,1839.6,5.4357968]
[1746578432977,3.0,1839.8,1839.6,5.4357968]
[1746578433178,3.0,1839.8,1839.5,6.25105588]
[1746578433413,3.0,1839.8,1839.5,6.25103374]
[1746578433720,3.0,1839.8,1839.6,5.49011499]
[1746578433924,3.0,1839.8,1839.7,5.43566885]
[1746578434085,3.0,1839.8,1839.6,5.43575065]
[1746578434431,3.0,1839.8,1839.6,10.87170251]
[1746578434611,3.0,1839.8,1839.7,5.43566885]
[1746578434814,3.0,1839.8,1839.6,5.43573817]
[1746578435026,3.0,1839.8,1839.6,10.92586617]
[1746578435325,3.0,1839.8,1839.6,5.4900913]
[1746578435514,3.0,1839.8,1839.6,5.43573817]
[1746578436125,0.30440134,1839.7,1839.6,5.43573817]
[1746578438128,0.30440134,1839.7,1839.5,11.68717743]
[1746578438335,0.30440134,1839.7,1839.5,6.25108708]
[1746578438521,0.30440134,1839.7,1839.6,5.43596434]
[1746578439235,5.43655539,1839.4,1839.3,6.04]
[1746578439432,6.26748978,1839.3,1838.9,18.12965509]
[1746578439596,0.85203879,1839.3,1839.0,5.43763244]
[1746578439794,0.30440134,1839.2,1839.1,5.43744222]
[1746578447859,0.30440134,1839.2,1839.1,5.74749213]
[1746578453097,0.30440134,1839.2,1839.1,0.31004991]
[1746578453236,0.30440134,1839.2,1839.1,5.74749213]
[1746578456871,0.30440134,1839.4,1839.2,5.43693352]
[1746578457372,0.30440134,1839.4,1839.3,0.31372124]
[1746578457674,3.77163879,1839.5,1839.3,5.75056691]
[1746578458270,0.30509828,1839.4,1839.3,5.75050228]
[1746578458453,0.30509828,1839.4,1839.3,0.31372124]
[1746578459169,0.30509828,1839.4,1839.3,6.607238]
[1746578460480,0.7915,1840.1,1839.9,5.43501883]
[1746578460637,0.7915,1840.1,1839.8,5.43532964]
[1746578460833,0.7915,1840.1,1839.9,0.31619213]
[1746578461250,3.0699968,1840.1,1839.9,0.31619213]
[1746578461456,10.11746977,1840.0,1839.9,0.31619213]
[1746578461949,3.0,1839.7,1839.4,11.47635786]
[1746578462269,0.30494838,1839.6,1839.5,5.43625979]
[1746578462964,0.30494838,1839.6,1839.5,0.23962926]
[1746578463166,0.32648717,1839.6,1839.5,0.23962926]
[1746578463366,1.51014401,1839.6,1839.3,5.43671834]
[1746578463545,1.20519563,1839.6,1839.5,0.24117691]
[1746578463769,1.60996426,1839.6,1839.5,0.24117691]
[1746578464599,10.35105874,1839.6,1839.5,0.24117691]
[1746578464913,3.0,1839.5,1839.2,5.43694623]
[1746578465110,3.0,1839.5,1839.3,5.43682644]
[1746578465313,3.0,1839.5,1839.4,5.43655539]
[1746578465607,3.30513014,1839.5,1839.4,5.43655539]
[1746578465797,0.30513014,1839.5,1839.4,5.43655539]
[1746578466099,0.30513014,1839.5,1839.3,5.43673361]
[1746578466276,0.30513014,1839.5,1839.3,5.43667738]
[1746578466469,0.30513014,1839.4,1839.3,5.43664634]
[1746578466999,0.30513014,1839.4,1839.2,5.43695588]
[1746578467206,0.30513014,1839.4,1839.1,11.87827855]
[1746578467370,1.07133014,1839.4,1839.1,11.87827855]
[1746578467567,0.30513014,1839.3,1839.2,5.49151543]
[1746578467798,0.30513014,1839.3,1839.2,5.43714658]
[1746578469122,0.30513014,1839.3,1839.2,5.49150775]
[1746578470313,0.30513014,1839.3,1839.2,5.43714658]
[1746578470989,0.30513014,1839.3,1839.1,11.87826274]
[1746578471417,0.30513014,1839.2,1839.1,11.87826274]
[1746578471603,0.30513014,1839.2,1839.1,6.441]
[1746578472004,0.30513014,1839.2,1839.1,11.87844222]
[1746578472420,0.30513014,1839.2,1839.1,5.43744222]
[1746578474437,2.58362694,1839.2,1838.9,5.43785577]
[1746578474731,0.30513014,1839.2,1839.1,5.43744222]
[1746578476632,0.30513014,1839.2,1839.1,5.49181267]
[1746578476803,3.0,1839.5,1839.2,5.43686301]
[1746578477795,3.0,1839.5,1839.3,0.22182736]
[1746578477999,3.0,1839.5,1839.3,5.65860425]
[1746578478296,0.30541362,1839.4,1839.3,5.65860425]
[1746578478497,0.30541362,1839.4,1839.3,6.43290425]
[1746578478960,0.30541362,1839.4,1839.3,6.48726348]
[1746578479668,0.30541362,1839.4,1839.3,6.43290425]
[1746578480738,0.30541362,1839.4,1839.3,12.87290425]
[1746578481651,6.12993559,1839.9,1839.6,5.43578562]
[1746578482124,6.12993559,1839.9,1839.7,0.22182736]
[1746578482328,0.30528129,1839.8,1839.7,0.22182736]
[1746578483171,0.30523927,1839.8,1839.7,5.65749621]
[1746578483963,0.30523927,1839.8,1839.7,0.22182736]
[1746578484761,0.30523927,1839.8,1839.7,5.65749621]
[1746578486052,0.30523927,1839.8,1839.7,25.38535033]
[1746578486255,0.30523927,1839.8,1839.7,25.33099621]
[1746578486455,3.0559968,1840.4,1840.1,5.43425931]
[1746578486766,3.0,1840.3,1840.1,5.43425931]
[1746578486967,3.0,1840.3,1840.2,5.65601929]
[1746578487169,3.30493867,1840.3,1840.2,5.65601929]
[1746578487372,0.30493867,1840.3,1840.2,5.65601929]
[1746578489869,0.30493867,1840.3,1840.2,0.22182736]
[1746578490084,0.30493867,1840.3,1840.1,5.43430693]
[1746578490272,3.30493867,1840.3,1840.2,0.21269655]
[1746578490459,3.30493867,1840.3,1840.1,5.43430693]
[1746578490634,3.30493867,1840.3,1840.2,0.21269655]
[1746578490836,3.30493867,1840.3,1840.1,5.43430693]
[1746578491168,0.30493867,1840.2,1840.1,5.43430693]
[1746578493076,0.30493867,1840.2,1840.1,5.64700348]
[1746578493564,0.30425952,1840.2,1840.1,5.64700348]
[1746578493763,12.13051299,1840.2,1840.1,0.21269655]
[1746578493978,12.1089742,1840.2,1840.1,0.21269655]
[1746578494182,5.43492222,1840.0,1839.7,6.04]
[1746578494382,2.30003559,1839.9,1839.6,5.43585473]
[1746578494986,0.30425952,1839.8,1839.6,5.43585473]
[1746578496687,5.58275632,1839.8,1839.4,5.43638759]
[1746578496866,2.2784968,1839.6,1839.3,5.43675144]
[1746578497656,2.2784968,1839.6,1839.3,5.43667975]
[1746578498009,0.30425952,1839.5,1839.3,5.4366542]
[1746578498190,0.30425952,1839.5,1839.4,5.43655539]
[1746578498564,0.30425952,1839.5,1839.3,5.43666006]
[1746578499101,0.30425952,1839.6,1839.2,5.43700811]
[1746578499395,8.74024758,1839.6,1839.2,5.43700811]
[1746578499693,3.30425952,1839.6,1839.3,5.43678131]
[1746578499898,0.30425952,1839.5,1839.3,5.43665285]
[1746578500895,0.30425952,1839.5,1839.3,5.4367082]
[1746578501100,0.30425952,1839.5,1839.4,5.43655539]
[1746578501298,0.30425952,1839.5,1839.4,6.25365539]
[1746578501702,0.30425952,1839.5,1839.4,6.3080013]
[1746578501997,0.30425952,1840.0,1839.7,5.43545095]
[1746578502199,2.2784968,1839.9,1838.6,0.40722577]
[1746578502401,2.2784968,1839.9,1837.5,5.71475583]
[1746578502402,2.2784968,1838.9,1837.7,0.7969]
[1746578502600,2.2784968,1838.5,1837.7,0.7969]
[1746578502763,0.52784968,1838.5,1837.9,6.45139811]
[1746578502959,0.02153879,1838.8,1837.9,6.45139811]
[1746578503165,0.40269469,1838.8,1838.4,5.43930923]
[1746578503365,0.30474382,1838.7,1838.5,12.778]
[1746578503596,0.30474382,1838.7,1838.4,5.43951095]
[1746578503787,0.30474382,1838.6,1838.5,6.397]
[1746578504011,0.30474382,1838.6,1838.5,6.399]
[1746578504219,0.30474382,1838.6,1838.3,19.596]
[1746578504424,3.41381392,1838.8,1838.5,6.399]
[1746578504626,3.41381392,1838.8,1838.6,6.399]
[1746578504827,3.41381392,1838.8,1838.7,6.399]
[1746578505144,3.71826069,1838.8,1838.7,6.399]
[1746578505315,0.71826069,1838.8,1838.7,6.399]
[1746578505489,0.30444677,1838.8,1838.7,6.399]
[1746578506103,0.30444677,1838.8,1838.3,20.4206]
[1746578506307,6.07556932,1838.8,1838.7,6.399]
[1746578506530,0.63686184,1838.8,1838.7,6.399]
[1746578506831,6.07519118,1838.8,1838.7,6.399]
[1746578507039,0.30426328,1838.8,1838.7,6.399]
[1746578507207,0.8064,1839.4,1838.7,11.89201107]
[1746578507402,6.24310775,1839.4,1838.8,0.7813]
[1746578507622,5.43709577,1839.3,1838.8,0.7813]
[1746578507791,5.4374438,1839.1,1838.5,5.4390717]
[1746578508136,5.4374438,1839.1,1838.6,12.778]
[1746578508137,5.43818547,1838.9,1838.6,12.778]
[1746578508498,5.43848984,1838.8,1838.5,6.399]
[1746578508697,9.25218007,1838.9,1838.5,6.399]
[1746578508936,0.814,1838.9,1838.5,6.399]
[1746578509556,0.40397676,1838.9,1838.5,11.83806828]
[1746578509720,9.24142247,1839.2,1838.6,5.43876404]
[1746578510059,10.74691644,1839.2,1838.6,5.43876404]
[1746578510963,0.02153879,1839.2,1838.6,0.7929]
[1746578511143,4.05407739,1839.4,1839.0,5.43748611]
[1746578511452,3.0,1839.3,1839.0,11.83748611]
[1746578512452,3.0,1839.3,1839.1,5.43741963]
[1746578512663,3.0,1839.3,1839.0,11.83748526]
[1746578512664,3.0,1839.3,1839.0,11.83757259]
[1746578512858,4.47495381,1839.7,1839.1,0.7564]
[1746578513025,4.47495381,1839.7,1839.4,5.43626835]
[1746578513360,3.65275381,1839.7,1839.5,0.05435593]
[1746578513914,3.65275381,1839.7,1839.3,5.43672626]
[1746578514119,9.47542368,1839.7,1839.2,10.87396305]
[1746578514350,9.47542368,1839.7,1839.3,5.43682692]
[1746578514569,9.47542368,1839.7,1839.2,5.4369348]
[1746578514570,3.65275381,1839.7,1839.4,0.05435962]
[1746578514728,1.16044595,1840.0,1839.7,5.43566028]
[1746578515058,7.87593277,1840.2,1839.7,5.48979549]
[1746578515059,14.11925812,1840.2,1839.7,5.48979549]
[1746578515221,4.41192581,1840.1,1839.7,5.48979302]
[1746578515557,4.41192581,1840.1,1839.7,5.48978227]
[1746578516355,9.8464636,1840.1,1839.7,5.48978227]
[1746578517065,9.8464636,1840.1,1839.7,5.43543389]
[1746578517266,9.8464636,1840.1,1839.6,5.43582289]
[1746578517778,9.8464636,1840.1,1839.7,5.43565463]
[1746578518087,4.41192581,1840.1,1839.8,5.48959813]
[1746578519264,4.20819341,1840.2,1839.9,5.43492926]
[1746578519467,0.39919341,1840.2,1840.0,5.48902278]
[1746578519679,3.0,1840.3,1840.0,5.43464093]
[1746578519986,0.30355563,1840.2,1840.1,5.43437339]
[1746578520484,0.30355563,1840.2,1840.0,12.5936866]
[1746578520665,3.0,1840.3,1840.1,5.43448725]
[1746578520861,3.0,1840.3,1840.1,0.05433923]
[1746578521068,3.0,1840.3,1840.0,12.59378033]
[1746578521578,4.67135562,1840.3,1840.0,12.59378033]
[1746578521752,10.10538448,1840.3,1840.0,6.398]
[1746578521938,4.67135562,1840.3,1840.0,6.398]
[1746578522140,0.30365217,1840.2,1840.0,6.398]
[1746578522542,0.30365217,1840.1,1840.0,6.398]
[1746578523582,0.30365217,1840.1,1840.0,11.8327826]
[1746578524367,0.30365217,1840.2,1840.0,11.8327826]
[1746578525102,0.30365217,1840.2,1840.0,6.398]
[1746578526992,0.30365217,1840.2,1840.0,11.832744]
[1746578528003,0.30365217,1840.2,1840.1,6.24422698]
[1746578528199,0.30365217,1840.7,1840.5,5.43316419]
[1746578528372,0.30365217,1840.7,1840.5,11.79716419]
[1746578528567,0.30365217,1840.6,1840.5,11.79716419]
[1746578529578,3.0,1840.8,1840.5,17.23036366]
[1746578529807,4.26768537,1840.8,1840.6,5.43299221]
[1746578530197,4.67259328,1840.8,1840.6,5.43299221]
[1746578530398,4.67259328,1840.8,1840.5,11.79706828]
[1746578531504,10.10506621,1840.8,1840.5,6.364]
[1746578531706,3.7707,1840.6,1840.2,6.04]
[1746578531871,9.95950487,1840.5,1840.2,6.04]
[1746578532573,0.30287033,1840.4,1840.2,6.04]
[1746578532908,5.7366843,1840.4,1840.0,5.4346294]
[1746578533107,5.7366843,1840.4,1840.1,6.363]
[1746578533408,1.5414838,1840.4,1840.1,11.79745119]
[1746578534405,1.5414838,1840.4,1840.1,11.79738285]
[1746578534813,1.5414838,1840.4,1840.2,5.43415217]
[1746578535015,4.24471775,1840.5,1840.2,5.43415217]
[1746578535417,9.67804055,1840.5,1840.1,11.79733837]
[1746578535598,9.67804055,1840.5,1840.1,11.79727266]
[1746578535788,11.26623148,1840.5,1840.1,11.79727266]
[1746578535989,11.24469269,1840.5,1840.1,11.79727266]
[1746578536187,0.30316177,1840.4,1840.1,11.79727266]
[1746578536381,5.43434256,1840.2,1839.8,5.43523663]
[1746578536616,4.76661322,1840.1,1839.9,6.363]
[1746578536917,0.8127,1840.2,1839.9,11.85231592]
[1746578537096,3.0,1840.1,1839.9,6.363]
[1746578538110,3.0,1840.1,1839.8,5.43515043]
[1746578538307,3.0,1840.1,1839.8,11.79815043]
[1746578538716,3.8127,1840.2,1839.9,5.4348472]
[1746578538903,3.0,1840.2,1840.0,5.43465387]
[1746578539342,0.30402298,1840.1,1839.9,0.05434498]
[1746578539529,0.30402298,1840.1,1839.9,5.43494639]
[1746578540541,0.30402298,1840.0,1839.9,5.43494639]
[1746578541552,0.30402298,1840.1,1839.9,10.86980948]
[1746578541757,0.30402298,1840.1,1839.9,5.43486309]
[1746578542255,0.30402298,1840.0,1839.9,5.43486309]
[1746578542856,0.30402298,1840.0,1839.8,5.43520758]
[1746578543154,9.65831868,1839.9,1839.5,6.21778101]
[1746578543333,11.28083866,1839.9,1839.5,5.43608101]
[1746578543747,11.28083866,1839.9,1839.5,10.87215288]
[1746578543948,0.30402298,1839.8,1839.5,5.43606032]
[1746578544121,0.30402298,1839.8,1839.7,5.43566885]
[1746578545643,3.0,1840.3,1840.1,5.43430635]
[1746578545959,0.3,1840.2,1840.1,5.43430635]
[1746578546137,0.3,1840.2,1840.0,5.43456231]
[1746578546333,2.39459093,1840.5,1840.2,5.43419193]
[1746578546644,0.4180384,1840.5,1840.4,5.43359458]
[1746578546959,3.0,1840.6,1840.4,5.43359458]
[1746578547537,0.30493851,1840.5,1840.4,5.43359458]
[1746578547765,0.30493851,1840.5,1840.3,5.43369921]
[1746578548527,0.30493851,1840.5,1840.3,10.86739254]
[1746578548819,6.05798558,1840.7,1840.4,5.43360139]
[1746578549030,0.60579856,1840.6,1840.5,5.43330616]
[1746578549232,6.47167988,1840.7,1840.5,5.43330616]
[1746578549685,0.30487446,1840.6,1840.5,5.43330616]
[1746578550560,0.30487446,1840.6,1840.5,5.48763346]
[1746578550767,0.30487446,1840.6,1840.5,11.82363346]
[1746578550972,0.30487446,1840.6,1840.5,11.76930616]
[1746578553746,0.30487446,1840.6,1840.5,12.58110616]
[1746578553948,0.7738,1841.2,1841.0,5.43173561]
[1746578554171,4.24471775,1841.3,1841.0,5.43171618]
[1746578554172,4.22317896,1841.3,1841.0,5.43171618]
[1746578554368,5.63123408,1841.3,1841.0,5.43171618]
[1746578554699,0.30438819,1841.2,1841.1,5.43153549]
[1746578555600,0.30438819,1841.2,1841.0,11.76171618]
[1746578555778,0.30438819,1841.1,1841.0,11.76166537]
[1746578556592,4.42655381,1841.4,1841.1,5.43127542]
[1746578556786,4.42655381,1841.4,1841.1,10.86264151]
[1746578556987,6.65275381,1841.4,1841.1,5.43127542]
[1746578557388,0.30382708,1841.3,1841.1,5.43127542]
[1746578558204,0.30382708,1841.2,1841.1,5.43127542]
[1746578559177,0.30382708,1841.3,1841.1,5.43127542]
[1746578560207,3.0,1841.4,1841.1,5.43127542]
[1746578560703,9.65416799,1841.3,1841.0,6.33]
[1746578561110,0.8173,1841.6,1841.1,0.84820966]
[1746578561312,12.65311227,1841.7,1841.3,5.43080141]
[1746578561512,0.30326743,1841.6,1841.3,5.48510427]
[1746578562316,0.30326743,1841.5,1841.3,5.48510427]
[1746578562610,0.30326743,1841.5,1841.3,5.43080141]
[1746578563620,9.65357754,1841.5,1841.1,6.22531223]
[1746578563788,4.22317896,1841.5,1841.1,6.2252682]
[1746578563993,4.22317896,1841.5,1841.2,5.43095345]
[1746578564400,10.44676003,1841.5,1841.1,12.54430514]
[1746578565221,4.22317896,1841.3,1841.0,6.331]
[1746578565512,5.43127049,1841.2,1841.0,6.331]
[1746578565714,3.0,1841.4,1840.8,6.318]
[1746578565715,10.4923737,1841.1,1840.8,6.331]
[1746578565902,9.65549721,1840.9,1840.7,19.582]
[1746578566213,5.43242068,1840.8,1840.7,19.582]
[1746578566407,6.24842068,1840.8,1840.6,6.331]
[1746578566805,6.24842068,1840.8,1840.4,11.76443415]
[1746578567008,6.26995947,1840.8,1840.4,11.76443415]
[1746578567208,4.22317896,1840.9,1840.6,5.43283693]
[1746578567517,4.22317896,1840.9,1840.6,5.43278341]
[1746578570922,4.22317896,1840.9,1840.5,5.43318431]
[1746578571095,5.43257544,1840.8,1840.4,23.5099041]
[1746578571297,5.43257544,1840.8,1840.5,5.4332978]
[1746578571492,10.72012503,1840.9,1840.5,5.4332978]
[1746578571699,16.15248779,1840.9,1840.5,5.4332978]
[1746578571900,10.69858624,1840.9,1840.5,5.4332978]
[1746578572207,10.72012503,1840.9,1840.5,5.4332978]
[1746578572392,0.30363205,1840.8,1840.5,5.48741875]
[1746578572593,0.30363205,1840.8,1840.6,5.43289891]
[1746578572790,0.30363205,1840.8,1840.5,5.48744601]
[1746578573429,9.65533031,1840.9,1840.5,5.48744601]
[1746578574410,9.6768691,1840.9,1840.5,5.48744601]
[1746578574932,0.30407027,1840.8,1840.5,5.48744601]
[1746578575130,0.30407027,1840.8,1840.5,10.92056216]
[1746578575624,0.30407027,1840.8,1840.5,5.4874427]
[1746578575794,0.30407027,1840.7,1840.5,5.4874427]
[1746578576398,0.30407027,1840.8,1840.5,5.4874427]
[1746578576910,1.30216421,1840.8,1840.5,5.4874427]
[1746578577101,1.30216421,1840.8,1840.5,5.43311615]
[1746578577929,0.30407027,1840.7,1840.5,5.43311615]
[1746578578399,0.30407027,1840.7,1840.5,10.86624028]
[1746578578595,0.30407027,1840.7,1840.5,5.48744274]
[1746578578928,0.30407027,1840.6,1840.5,5.48744274]
[1746578579348,0.30407027,1840.6,1840.5,5.43311615]
[1746578579560,0.30407027,1840.6,1840.5,5.48743836]
[1746578579945,0.30407027,1840.9,1840.7,5.43261504]
[1746578580151,0.30407027,1840.9,1840.6,5.43280779]
[1746578580316,7.22848372,1840.9,1840.5,5.4331579]
[1746578580516,7.25002251,1840.9,1840.5,5.4331579]
[1746578580855,0.30407027,1840.8,1840.5,10.86623983]
[1746578581042,0.30407027,1840.8,1840.6,5.43299747]
[1746578581223,0.30407027,1840.8,1840.5,5.48744711]
[1746578581550,6.23922738,1840.6,1840.3,6.332]
[1746578581726,6.23922738,1840.6,1840.3,18.06688675]
[1746578582236,0.30407027,1840.7,1840.4,5.43341166]
[1746578582440,0.30407027,1840.6,1840.4,5.43341166]
[1746578583161,0.30407027,1840.6,1840.5,5.43330616]
[1746578583332,0.30407027,1840.6,1840.5,6.3001329]
[1746578583656,0.30407027,1840.6,1840.5,6.24580616]
[1746578583854,0.30407027,1840.6,1840.5,6.30013004]
[1746578584032,0.30407027,1840.6,1840.5,6.24580616]
[1746578584235,0.30407027,1840.6,1840.5,6.30013003]
[1746578584722,0.30407027,1840.8,1840.5,6.30013003]
[1746578585055,0.30407027,1840.8,1840.7,5.43271581]
[1746578585244,0.30407027,1840.8,1840.6,5.43282114]
[1746578585554,0.30407027,1840.8,1840.7,5.43271581]
[1746578585851,0.30407027,1840.8,1840.6,5.48715168]
[1746578586353,0.30407027,1840.7,1840.6,5.43282806]
[1746578586856,0.30407027,1840.7,1840.6,5.48715178]
[1746578587159,0.30407027,1840.8,1840.7,5.43271581]
[1746578593588,0.30407027,1840.8,1840.7,6.23451581]
[1746578594065,0.30407027,1840.8,1840.7,6.28882624]
[1746578594261,3.30407027,1841.4,1841.1,10.86257824]
[1746578594464,0.3,1841.3,1841.1,11.73128116]
[1746578594967,2.57474438,1841.3,1841.1,11.73128116]
[1746578595166,3.0,1841.1,1839.0,10.37623911]
[1746578595382,2.27474438,1839.7,1839.2,0.87435637]
[1746578595530,5.27474438,1840.0,1839.2,0.87435637]
[1746578595737,3.0,1840.0,1839.5,5.43609747]
[1746578595933,3.0,1840.0,1839.6,6.35434956]
[1746578596134,0.60407027,1839.9,1839.6,6.3]
[1746578596341,0.30407027,1839.9,1839.7,0.0543523]
[1746578596554,0.30407027,1839.9,1839.6,6.3]
[1746578596847,0.30407027,1839.8,1839.2,20.403]
[1746578597053,0.30407027,1839.8,1839.3,11.73784304]
[1746578597253,0.30407027,1839.8,1839.3,18.0237009]
[1746578597455,0.30407027,1839.8,1839.3,18.02382215]
[1746578597662,0.30479259,1839.7,1839.3,18.02382215]
[1746578597836,0.30479259,1839.7,1839.4,5.43654232]
[1746578598273,0.43870627,1839.9,1839.5,0.05435591]
[1746578598569,5.87384507,1839.9,1839.4,5.43654232]
[1746578598770,7.3047186,1839.9,1839.3,18.02367843]
[1746578598971,0.41716748,1839.9,1839.4,5.49077508]
[1746578599179,3.02153879,1840.0,1839.3,18.02372835]
[1746578599368,5.43587514,1839.7,1839.3,6.301]
[1746578599562,5.43587514,1839.7,1839.3,12.585]
[1746578599762,5.45707519,1839.8,1839.3,12.585]
[1746578599964,6.54630378,1839.8,1839.3,12.585]
[1746578600375,5.43572313,1839.7,1839.3,12.585]
[1746578600880,5.43609198,1839.6,1839.4,6.302]
[1746578601190,5.43585028,1839.7,1839.4,6.302]